bitfinex/quotes_SOLUSD_20241215
["timestamp","ask_amount","ask_price","bid_price","bid_amount"]
[1734240504986,0.12549,220.69,220.56,8.0572]
[1734240505309,20.12549,220.68,220.56,8.0572]
[1734240505687,0.12549,220.67,220.56,8.0572]
[1734240506197,20.0,220.69,220.57,24.45681118]
[1734240506652,20.0,220.71,220.57,24.45681118]
[1734240506983,20.0,220.71,220.58,13.73]
[1734240507306,20.0,220.71,220.59,0.67978776]
[1734240507918,7.05528516,220.74,220.61,7.7132]
[1734240508113,7.05528516,220.79,220.62,24.45655152]
[1734240508798,0.12549,220.78,220.62,24.45655152]
[1734240509113,24.027864,220.78,220.62,24.45655152]
[1734240509290,20.0,220.75,220.62,24.45655152]
[1734240516513,20.25098,220.78,220.62,24.45655152]
[1734240520029,0.25098,220.78,220.64,1.5385]
[1734240520236,0.25098,220.78,220.64,2.21810614]
[1734240524813,0.25098,220.78,220.64,1.5385]
[1734240532427,0.12549,220.78,220.66,6.4126]
[1734240532706,81.7,220.83,220.69,6.4126]
[1734240532949,0.12549,220.82,220.69,7.09207504]
[1734240533565,87.42469931,220.88,220.69,7.09207504]
[1734240533732,1.84698841,220.84,220.71,6.4126]
[1734240533942,87.42469931,220.88,220.72,0.67939485]
[1734240534239,0.12549,220.87,220.72,0.67939485]
[1734240534448,0.12549,220.87,220.73,1.5103]
[1734240534629,87.42469931,220.88,220.73,1.5103]
[1734240535024,20.0,220.85,220.73,1.5103]
[1734240535259,0.12549,220.84,220.73,1.5103]
[1734240536126,0.25098,220.84,220.73,1.5103]
[1734240538960,20.0,220.85,220.75,6.4126]
[1734240539129,0.12549,220.85,220.75,6.4126]
[1734240540233,1.7647162,220.88,220.75,6.4126]
[1734240540538,0.12549,220.92,220.75,6.4126]
[1734240540742,89.22592594,220.93,220.75,6.4126]
[1734240541077,0.12549,220.92,220.75,6.4126]
[1734240541274,2.91572993,220.92,220.75,6.4126]
[1734240541683,24.027864,220.87,220.75,6.4126]
[1734240542044,20.0,220.84,220.75,6.4126]
[1734240542245,0.12549,220.83,220.75,6.4126]
[1734240546468,20.0,220.86,220.75,6.4126]
[1734240546760,0.12549,220.85,220.75,6.4126]
[1734240547140,0.25098,220.85,220.75,6.4126]
[1734240550474,24.027864,220.85,220.75,6.4126]
[1734240550676,20.0,220.82,220.75,6.4126]
[1734240556993,20.0,220.84,220.75,6.4126]
[1734240557198,0.12549,220.83,220.75,6.4126]
[1734240557363,20.0,220.84,220.75,6.4126]
[1734240557695,0.12549,220.87,220.75,6.4126]
[1734240558060,0.25098,220.87,220.75,6.4126]
[1734240558464,0.12549,220.87,220.75,6.4126]
[1734240558772,20.0,220.9,220.77,1.5519]
[1734240559093,0.12549,220.89,220.77,1.5519]
[1734240560170,0.25098,220.89,220.77,1.5519]
[1734240580479,20.0,220.86,220.77,1.5519]
[1734240580680,0.12549,220.85,220.77,1.5519]
[1734240581282,0.25098,220.85,220.77,1.5519]
[1734240581983,24.027864,220.85,220.77,1.5519]
[1734240582184,20.0,220.82,220.77,1.5519]
[1734240596424,20.12549,220.85,220.77,1.5519]
[1734240596740,0.25098,220.85,220.77,1.5519]
[1734240597621,20.25098,220.85,220.77,1.5519]
[1734240601130,24.027864,220.83,220.77,1.5519]
[1734240601343,20.0,220.8,220.75,6.4126]
[1734240604311,20.0,220.82,220.75,6.4126]
[1734240604584,20.0,220.85,220.76,1.6439]
[1734240604753,0.12549,220.84,220.76,1.6439]
[1734240605256,0.12549,220.85,220.76,1.6439]
[1734240605743,0.12549,220.88,220.76,1.6439]
[1734240605929,24.027864,220.9,220.76,1.6439]
[1734240606120,0.12549,220.9,220.76,1.6439]
[1734240607227,0.25098,220.87,220.76,1.6439]
[1734240609430,24.027864,220.87,220.76,1.6439]
[1734240609663,20.0,220.84,220.77,0.67930763]
[1734240609967,8.82863105,220.91,220.77,0.67930763]
[1734240609968,23.902374,220.9,220.77,0.67930763]
[1734240610273,23.902374,220.9,220.79,1.6327]
[1734240610441,0.25098,220.9,220.79,1.6327]
[1734240611058,20.25098,220.9,220.79,1.6327]
[1734240611448,0.25098,220.9,220.79,1.6327]
[1734240612048,20.0,220.87,220.79,1.6327]
[1734240612659,20.0,220.87,220.79,15.3427]
[1734240613160,7.05528516,220.94,220.8,0.67919935]
[1734240613360,0.12549,220.93,220.81,6.5148]
[1734240613869,0.12549,220.94,220.81,6.5148]
[1734240614679,24.027864,220.92,220.81,6.5148]
[1734240614872,20.0,220.89,220.81,6.5148]
[1734240615239,21.79200688,220.94,220.81,6.5148]
[1734240615457,20.0,220.94,220.81,6.5148]
[1734240616438,0.12549,220.93,220.81,6.5148]
[1734240616668,20.0,220.9,220.81,6.5148]
[1734240620880,2.65262166,220.96,220.81,6.5148]
[1734240620881,20.0,220.86,220.81,6.5148]
[1734240621447,20.0,220.92,220.81,6.5148]
[1734240621745,20.0,220.88,220.81,6.5148]
[1734240621957,0.12549,220.87,220.81,6.5148]
[1734240634490,0.25098,220.87,220.81,6.5148]
[1734240634684,20.0,220.84,220.79,1.6327]
[1734240642889,20.0,220.84,220.76,6.4728]
[1734240646179,0.12549,220.87,220.76,7.1521721]
[1734240655909,12.06345981,220.91,220.77,1.5235]
[1734240655910,0.12549,220.91,220.77,1.5235]
[1734240656109,0.12549,220.92,220.79,6.5445]
[1734240656708,0.12549,220.93,220.79,6.5445]
[1734240657071,0.25098,220.93,220.79,6.5445]
[1734240657516,20.0,220.91,220.79,6.5445]
[1734240657700,0.12549,220.9,220.79,6.5445]
[1734240658072,0.12549,220.9,220.8,0.67916562]
[1734240659476,0.12549,220.9,220.79,6.5445]
[1734240660605,20.0,220.87,220.79,6.5445]
[1734240674629,0.12549,220.86,220.79,6.5445]
[1734240674838,20.0,220.83,220.77,1.5235]
[1734240675141,0.12549,220.82,220.77,1.5235]
[1734240678452,20.0,220.83,220.77,1.5235]
[1734240678956,7.05528516,220.91,220.77,1.5235]
[1734240679839,0.12549,220.9,220.77,1.5235]
[1734240680228,24.027864,220.88,220.77,1.5235]
[1734240680414,20.0,220.85,220.77,1.5235]
[1734240681140,7.05528516,220.93,220.78,7.09837785]
[1734240681323,7.05528516,220.93,220.78,16.64142956]
[1734240681535,0.12549,220.92,220.79,1.6171]
[1734240681745,0.12549,220.92,220.8,0.67913972]
[1734240682127,0.12549,220.94,220.8,0.67913972]
[1734240682539,20.0,220.91,220.8,0.67913972]
[1734240683161,20.0,220.91,220.81,13.71]
[1734240685441,0.12549,220.9,220.79,1.6171]
[1734240687525,20.0,220.91,220.8,0.67918937]
[1734240687723,20.0,220.91,220.81,6.395]
[1734240687929,20.0,220.91,220.82,0.67910238]
[1734240689019,20.0,220.91,220.82,14.38910238]
[1734240689289,20.0,220.91,220.82,0.67910238]
[1734240689441,20.0,220.91,220.81,6.395]
[1734240691731,23.902374,220.94,220.81,6.395]
[1734240691732,20.0,220.94,220.83,1.5684]
[1734240691941,20.0,220.95,220.83,1.5684]
[1734240697338,23.902374,220.99,220.84,6.8330342]
[1734240697534,7.05528516,221.02,220.88,6.154]
[1734240697744,7.05528516,221.02,220.88,6.83287522]
[1734240698046,0.12549,221.01,220.88,6.154]
[1734240698852,20.0,221.0,220.88,6.154]
[1734240699059,20.12549,220.99,220.88,6.154]
[1734240699249,20.0,220.99,220.88,6.154]
[1734240700147,24.027864,220.98,220.88,6.154]
[1734240700751,20.0,220.95,220.88,6.154]
[1734240704065,0.12549,220.94,220.88,6.154]
[1734240707167,20.0,220.95,220.88,6.154]
[1734240711233,20.0,220.97,220.88,6.154]
[1734240716155,1.80467075,221.04,220.88,6.154]
[1734240716461,23.902374,221.04,220.88,6.83293455]
[1734240716652,23.902374,221.04,220.88,15.4865276]
[1734240717473,23.776884,221.04,220.89,0.12549]
[1734240717774,23.776884,221.04,220.91,1.6127]
[1734240717775,20.0,221.03,220.91,1.6127]
[1734240718474,20.0,221.04,220.91,1.6127]
[1734240721467,20.0,221.0,220.91,1.6127]
[1734240722989,20.0,221.04,220.91,1.6127]
[1734240723234,20.0,221.04,220.91,2.29157369]
[1734240725457,20.5492849,221.05,220.91,2.29157369]
[1734240727772,0.5492849,221.05,220.95,20.0]
[1734240727972,0.5492849,221.05,220.97,8.65359305]
[1734240728176,0.5492849,221.05,220.98,10.30219305]
[1734240728374,0.5492849,221.05,220.99,0.67857116]
[1734240728981,0.5492849,221.05,220.98,1.6486]
[1734240734777,20.0,221.01,220.96,6.5505]
[1734240738313,23.902374,221.0,220.92,1.6486]
[1734240738689,0.12549,221.03,220.92,1.6486]
[1734240738999,20.0,221.0,220.92,1.6486]
[1734240741501,0.5492849,221.05,220.92,1.6486]
[1734240741691,20.0,221.03,220.92,1.6486]
[1734240745485,20.0,221.03,220.92,2.32742516]
[1734240746518,0.5492849,221.05,220.93,6.6033]
[1734240746885,0.5492849,221.05,220.94,0.80420392]
[1734240747084,0.5492849,221.05,220.94,9.45670071]
[1734240748791,0.5492849,221.05,220.94,0.80420392]
[1734240752334,0.5492849,221.05,220.96,1.5402]
[1734240752517,0.5492849,221.05,220.96,2.21887999]
[1734240752723,0.5492849,221.05,220.97,6.6033]
[1734240759826,0.5492849,221.05,221.0,8.64961058]
[1734240760032,0.5492849,221.05,221.0,9.32814174]
[1734240762199,0.5492849,221.05,221.0,9.98814174]
[1734240765103,0.5492849,221.05,221.01,8.77510058]
[1734240765418,0.5492849,221.05,221.03,8.1435]
[1734240766508,0.5492849,221.05,221.03,20.7035]
[1734240766715,0.5492849,221.05,221.04,8.77510058]
[1734240766922,0.5492849,221.05,221.04,9.45350276]
[1734240767931,0.5492849,221.05,221.04,33.35587676]
[1734240772947,0.5492849,221.05,221.04,135.37840218]
[1734240773124,0.5492849,221.05,221.04,143.34961058]
[1734240773448,0.5492849,221.05,221.04,143.47510058]
[1734240776049,0.5492849,221.05,221.04,8.77510058]
[1734240776254,0.5492849,221.05,221.04,0.12549]
[1734240776433,0.5492849,221.05,221.04,8.77510058]
[1734240777437,0.5492849,221.05,221.04,32.67747458]
[1734240778942,0.5492849,221.05,221.04,167.37747458]
[1734240779832,0.5492849,221.05,221.04,178.2114102]
[1734240781764,21.5666,221.24,221.12,0.12549]
[1734240781987,21.5666,221.24,221.14,0.12549]
[1734240784350,7.2045849,221.27,221.16,8.64961058]
[1734240784351,0.5492849,221.27,221.16,8.64961058]
[1734240787053,0.5492849,221.27,221.15,8.77510058]
[1734240787768,0.5492849,221.27,221.16,9.32765269]
[1734240788394,0.5492849,221.27,221.17,8.64961058]
[1734240788742,0.5492849,221.27,221.16,8.64961058]
[1734240788950,0.5492849,221.27,221.15,9.45314682]
[1734240789773,0.5492849,221.27,221.16,8.64961058]
[1734240790654,0.5492849,221.27,221.17,9.32764821]
[1734240790866,0.5492849,221.27,221.18,8.77510058]
[1734240791860,0.5492849,221.27,221.19,8.64961058]
[1734240792257,0.5492849,221.27,221.2,8.64961058]
[1734240794071,0.5492849,221.27,221.2,20.0]
[1734240795875,0.5492849,221.27,221.18,9.45307905]
[1734240796169,0.5492849,221.27,221.13,134.7]
[1734240796170,0.5492849,221.27,221.16,20.0]
[1734240796363,0.5492849,221.27,221.16,28.64961058]
[1734240797664,0.5492849,221.27,221.17,0.12549]
[1734240798370,0.5492849,221.27,221.17,8.77510058]
[1734240799259,0.5492849,221.27,221.18,8.64961058]
[1734240802658,0.5492849,221.27,221.17,9.45309708]
[1734240802860,1.5215,221.26,221.16,20.0]
[1734240803062,1.5215,221.26,221.16,28.64961058]
[1734240805470,1.5215,221.26,221.16,20.0]
[1734240805668,20.0,221.24,221.11,0.67807335]
[1734240805980,20.0,221.24,221.12,8.64961058]
[1734240808780,20.0,221.24,221.12,0.12549]
[1734240809092,20.0,221.24,221.12,8.77510058]
[1734240810093,20.0,221.24,221.12,8.64961058]
[1734240815342,20.0,221.24,221.09,0.67818827]
[1734240815490,20.0,221.24,221.12,8.64961058]
[1734240815875,20.0,221.24,221.11,20.0]
[1734240816086,20.0,221.24,221.12,8.64961058]
[1734240816677,0.12549,221.23,221.12,8.64961058]
[1734240819402,20.0,221.24,221.12,8.64961058]
[1734240819403,20.0,221.24,221.13,8.64961058]
[1734240819599,20.0,221.24,221.14,8.64961058]
[1734240819819,20.0,221.24,221.15,8.64961058]
[1734240821194,20.0,221.24,221.12,0.67822993]
[1734240821195,20.0,221.24,221.16,8.64961058]
[1734240821636,1.5215,221.26,221.16,8.64961058]
[1734240821997,20.0,221.24,221.16,8.64961058]
[1734240822344,20.0,221.24,221.15,8.77510058]
[1734240823698,20.0,221.24,221.14,0.67804987]
[1734240824016,20.0,221.24,221.15,8.64961058]
[1734240824327,20.0,221.24,221.14,9.32766045]
[1734240826197,20.0,221.24,221.11,20.0]
[1734240826398,20.0,221.24,221.09,0.67812331]
[1734240826399,1.6119,221.23,221.09,0.67812331]
[1734240826801,1.6119,221.23,221.09,9.32773389]
[1734240827626,1.6119,221.23,221.09,0.67812331]
[1734240827830,1.6119,221.23,221.09,9.32773389]
[1734240828395,1.6119,221.23,221.1,0.72]
[1734240831126,1.6119,221.23,221.1,9.36961058]
[1734240831413,1.6119,221.23,221.11,8.64961058]
[1734240832499,1.6119,221.23,221.05,10.83393562]
[1734240832500,20.0,221.17,221.03,8.64961058]
[1734240832833,19.5,221.17,221.05,0.72]
[1734240833642,0.12549,221.17,221.05,0.72]
[1734240836552,1.6119,221.12,221.05,0.72]
[1734240838034,1.6119,221.12,221.02,8.64961058]
[1734240839513,1.6119,221.12,221.03,8.64961058]
[1734240840516,1.6119,221.12,221.05,8.64961058]
[1734240842226,1.6119,221.12,221.06,9.32800579]
[1734240843034,1.6119,221.12,221.06,8.64961058]
[1734240844959,1.6119,221.12,221.06,0.12549]
[1734240845959,1.6119,221.12,221.05,9.32798484]
[1734240845960,1.6119,221.12,221.03,20.0]
[1734240846460,1.6119,221.12,221.04,0.12549]
[1734240846762,1.6119,221.12,221.03,20.0]
[1734240847681,1.6119,221.12,221.0,8.64961058]
[1734240847857,1.6119,221.12,221.01,8.64961058]
[1734240849049,1.6119,221.12,220.99,0.67856077]
[1734240849146,1.6119,221.12,220.99,0.12549]
[1734240850455,0.12549,221.11,220.98,8.64961058]
[1734240850751,6.3836,221.1,220.98,8.64961058]
[1734240851166,1.5912,221.09,220.96,20.0]
[1734240851563,1.5912,221.09,220.98,0.72]
[1734240852421,20.0,221.07,220.98,0.72]
[1734240853582,20.0,221.07,220.93,8.64961058]
[1734240853894,6.3836,221.02,220.94,0.73]
[1734240856183,6.3836,221.02,220.92,8.64961058]
[1734240856386,6.3836,221.02,220.93,0.73]
[1734240859308,6.3836,221.02,220.93,9.37961058]
[1734240861284,6.3836,221.02,220.93,0.73]
[1734240862020,1.5912,220.98,220.93,0.73]
[1734240862308,1.5912,220.98,220.82,0.67896743]
[1734240862485,1.5912,220.98,220.84,8.64961058]
[1734240863086,1.5912,220.98,220.85,13.01]
[1734240865708,20.0,220.93,220.85,13.01]
[1734240865908,1.5392,220.92,220.85,13.01]
[1734240866788,1.5392,220.92,220.8,8.64961058]
[1734240867112,1.5392,220.92,220.81,9.96961058]
[1734240867321,1.5392,220.92,220.82,8.64961058]
[1734240868722,1.5392,220.92,220.81,1.32]
[1734240868923,1.5392,220.92,220.81,9.96961058]
[1734240869506,1.5392,220.92,220.81,1.32]
[1734240870503,0.12549,220.91,220.81,1.32]
[1734240871927,1.5392,220.92,220.81,1.32]
[1734240872099,1.5392,220.92,220.83,8.64961058]
[1734240872306,1.5392,220.92,220.85,8.64961058]
[1734240872928,1.5392,220.92,220.84,9.32866636]
[1734240873327,1.5392,220.92,220.84,0.67905578]
[1734240874000,1.5392,220.92,220.84,9.32866636]
[1734240876641,1.5392,220.92,220.84,0.67905578]
[1734240876821,1.5392,220.92,220.83,8.77510058]
[1734240877140,1.5392,220.92,220.84,12.45]
[1734240877340,1.5392,220.92,220.84,13.12907394]
[1734240880238,1.5392,220.92,220.84,21.77868452]
[1734240881028,1.5392,220.92,220.84,13.12907394]
[1734240882323,1.5392,220.92,220.84,13.12907232]
[1734240883740,1.5392,220.92,220.84,21.7786829]
[1734240883922,1.5392,220.92,220.85,8.64961058]
[1734240888490,1.5392,220.92,220.84,13.12907232]
[1734240888936,1.5392,220.92,220.84,12.45]
[1734240890521,6.0048,220.91,220.84,12.45]
[1734240891339,6.0048,220.91,220.79,8.64961058]
[1734240892456,6.0048,220.91,220.83,8.64961058]
[1734240893151,6.0048,220.91,220.81,8.77510058]
[1734240893528,6.0048,220.91,220.81,0.12549]
[1734240894160,6.0048,220.91,220.82,20.0]
[1734240896136,6.0048,220.91,220.8,9.3287388]
[1734240896341,6.0048,220.91,220.81,8.64961058]
[1734240896543,6.0048,220.91,220.82,9.3287538]
[1734240897062,6.0048,220.91,220.82,0.67914322]
[1734240898445,6.0048,220.91,220.82,9.3287538]
[1734240901275,6.0048,220.91,220.82,0.67914322]
[1734240901477,6.0048,220.91,220.84,8.64961058]
[1734240902877,6.0048,220.91,220.82,28.64961058]
[1734240903077,6.0048,220.91,220.82,8.64961058]
[1734240904059,6.0048,220.91,220.77,154.7]
[1734240904060,6.0048,220.91,220.78,0.67911955]
[1734240904262,6.0048,220.91,220.77,8.64961058]
[1734240904466,6.0048,220.91,220.74,0.67924824]
[1734240904467,0.12549,220.9,220.76,8.64961058]
[1734240904672,1.6111,220.89,220.76,8.64961058]
[1734240905484,1.6111,220.89,220.75,8.64961058]
[1734240905681,20.12549,220.88,220.74,0.67930972]
[1734240905874,20.12549,220.88,220.74,9.3289203]
[1734240906759,1.78109,220.86,220.71,0.67933626]
[1734240906988,1.78109,220.86,220.73,8.64961058]
[1734240908090,26.5772,220.84,220.72,9.32900622]
[1734240908684,26.5772,220.84,220.73,8.64961058]
[1734240909776,6.5772,220.84,220.76,8.64961058]
[1734240909996,6.5772,220.84,220.77,8.64961058]
[1734240910289,6.5772,220.84,220.78,8.64961058]
[1734240910496,1.6556,220.86,220.79,8.64961058]
[1734240910706,1.6556,220.86,220.78,8.64961058]
[1734240914368,1.6556,220.86,220.76,0.12549]
[1734240914594,1.6556,220.86,220.78,8.64961058]
[1734240915171,1.6556,220.86,220.76,0.67922117]
[1734240915395,1.6556,220.86,220.75,28.64961058]
[1734240918093,1.6556,220.86,220.78,8.64961058]
[1734240918479,1.6556,220.86,220.76,0.80482083]
[1734240918480,1.6556,220.86,220.77,8.64961058]
[1734240918991,1.6556,220.86,220.78,8.64961058]
[1734240919794,1.6556,220.86,220.8,8.64961058]
[1734240919971,1.6556,220.86,220.79,0.67921482]
[1734240919972,1.6556,220.86,220.81,8.64961058]
[1734240921094,6.5772,220.9,220.81,8.64961058]
[1734240923981,6.5772,220.9,220.8,8.64961058]
[1734240924200,6.5772,220.9,220.78,8.64961058]
[1734240924581,6.5772,220.9,220.77,28.77510058]
[1734240926800,6.5772,220.9,220.78,8.64961058]
[1734240927291,6.5772,220.9,220.77,28.77510058]
[1734240927484,6.5772,220.9,220.77,28.64961058]
[1734240927693,0.12549,220.89,220.77,28.64961058]
[1734240929305,6.5772,220.9,220.79,8.64961058]
[1734240930683,6.5772,220.9,220.78,0.67926617]
[1734240930684,6.5772,220.9,220.78,9.32887675]
[1734240931910,0.12549,220.89,220.77,8.64961058]
[1734240933621,6.5772,220.9,220.8,8.64961058]
[1734240933819,6.5772,220.9,220.81,9.32873453]
[1734240934593,6.5772,220.9,220.81,0.67912395]
[1734240935407,6.5772,220.9,220.8,8.64961058]
[1734240944200,6.5772,220.9,220.79,28.64961058]
[1734240944601,6.5772,220.9,220.8,9.32877915]
[1734240951721,6.5772,220.9,220.8,0.67916857]
[1734240954935,6.5772,220.9,220.83,8.64961058]
[1734240955228,1.662,220.91,220.83,8.64961058]
[1734240955836,1.662,220.91,220.84,8.64961058]
[1734240960265,1.662,220.91,220.85,8.64961058]
[1734240965856,1.662,220.91,220.87,8.64961058]
[1734240966071,6.4005,220.95,220.88,8.64961058]
[1734240966226,1.5843,220.96,220.89,9.32851392]
[1734240966432,1.5843,220.96,220.9,8.64961058]
[1734240967264,1.5843,220.96,220.9,9.32844272]
[1734240968165,1.5843,220.96,220.9,8.64961058]
[1734240969155,1.5843,220.96,220.86,0.12549]
[1734240969363,1.5843,220.96,220.87,20.0]
[1734240969564,1.5843,220.96,220.86,8.64961058]
[1734240969771,1.5843,220.96,220.86,8.90059058]
[1734240972595,1.5843,220.96,220.81,20.6790134]
[1734240972782,1.5843,220.96,220.83,8.64961058]
[1734240973754,1.5843,220.96,220.82,8.77510058]
[1734240974375,1.5843,220.96,220.85,20.0]
[1734240975784,1.5843,220.96,220.83,8.64961058]
[1734240976166,1.5843,220.96,220.84,8.64961058]
[1734240977178,1.5843,220.96,220.83,8.77510058]
[1734240978178,1.5843,220.96,220.84,8.64961058]
[1734240978677,1.5843,220.96,220.85,8.64961058]
[1734240981270,1.5843,220.96,220.86,8.64961058]
[1734240981982,1.5843,220.96,220.88,8.64961058]
[1734240982175,1.5843,220.96,220.9,8.64961058]
[1734240984787,1.5843,220.96,220.88,20.0]
[1734240984961,1.5843,220.96,220.89,9.32849534]
[1734240985469,1.5843,220.96,220.9,0.12549]
[1734240985676,1.5843,220.96,220.9,8.90059058]
[1734240986183,6.0985,221.0,220.92,8.64961058]
[1734240988469,6.0985,221.0,220.92,0.25098]
[1734240988685,6.0985,221.0,220.89,8.64961058]
[1734240990060,6.0985,221.0,220.87,0.12549]
[1734240990259,6.0985,221.0,220.86,0.6788351]
[1734240990260,1.655,220.99,220.86,0.12549]
[1734240990760,1.655,220.99,220.86,0.25098]
[1734240991484,1.655,220.99,220.88,20.0]
[1734240993265,1.655,220.99,220.86,8.90059058]
[1734240996297,1.655,220.99,220.86,0.25098]
[1734240996674,1.655,220.99,220.88,20.0]
[1734240997684,1.655,220.99,220.86,8.90059058]
[1734240999236,23.776884,220.98,220.82,0.67897301]
[1734240999362,1.655,220.98,220.85,8.64961058]
[1734240999565,1.655,220.98,220.84,8.64961058]
[1734241000169,1.655,220.98,220.85,8.64961058]
[1734241000575,20.0,220.97,220.86,9.57958869]
[1734241000765,1.655,220.98,220.86,9.57958869]
[1734241003699,1.655,220.98,220.88,8.64961058]
[1734241010508,1.655,220.98,220.89,0.25098]
[1734241011206,1.655,220.98,220.89,0.12549]
[1734241011511,1.655,220.98,220.87,0.12549]
[1734241012210,20.0,220.97,220.84,0.67893051]
[1734241012398,1.5079,220.96,220.84,8.64961058]
[1734241014815,6.1631,220.95,220.84,0.25098]
[1734241015121,1.5079,220.94,220.78,0.67908033]
[1734241015323,1.5079,220.91,220.78,9.32869091]
[1734241015613,1.5079,220.91,220.77,8.64961058]
[1734241015811,1.5079,220.91,220.79,0.12549]
[1734241016588,1.5079,220.91,220.79,0.25098]
[1734241017898,1.5079,220.91,220.79,8.90059058]
[1734241019091,1.5079,220.91,220.83,8.64961058]
[1734241021108,1.5079,220.91,220.82,9.57966011]
[1734241025533,1.5079,220.91,220.82,0.93004953]
[1734241028036,6.1587,220.9,220.76,0.6790882]
[1734241028336,6.1587,220.9,220.75,8.64961058]
[1734241028541,1.5528,220.89,220.76,9.32889359]
[1734241028721,1.5528,220.89,220.78,8.64961058]
[1734241028905,1.5528,220.89,220.8,0.12549]
[1734241029105,1.5528,220.89,220.73,0.67915603]
[1734241029313,20.0,220.87,220.73,0.67915603]
[1734241029617,1.5528,220.86,220.73,0.67915603]
[1734241030411,1.5528,220.86,220.72,8.64961058]
[1734241030609,1.5528,220.86,220.75,20.0]
[1734241031217,6.1587,220.85,220.7,0.67937243]
[1734241031434,1.5528,220.84,220.7,8.64961058]
[1734241031829,1.5528,220.84,220.71,0.12549]
[1734241032736,20.0,220.82,220.69,8.64961058]
[1734241032949,23.776884,220.83,220.68,0.67945995]
[1734241032950,1.5528,220.79,220.68,8.64961058]
[1734241033260,1.5528,220.79,220.69,0.12549]
[1734241034112,1.5528,220.79,220.69,0.25098]
[1734241035213,1.5528,220.79,220.69,0.12549]
[1734241035413,6.1587,220.78,220.67,0.12549]
[1734241035620,6.1587,220.78,220.67,0.80505371]
[1734241036436,6.1587,220.78,220.66,28.64961058]
[1734241036631,6.1587,220.78,220.66,20.0]
[1734241037222,6.1587,220.78,220.65,0.12549]
[1734241037423,23.776884,220.77,220.63,20.0]
[1734241037638,23.776884,220.77,220.63,28.64961058]
[1734241037826,1.5528,220.76,220.63,28.64961058]
[1734241038245,1.5528,220.76,220.64,0.12549]
[1734241038740,1.5528,220.76,220.66,0.12549]
[1734241041136,1.5528,220.76,220.65,0.25098]
[1734241041327,1.5528,220.76,220.63,0.67963231]
[1734241041529,20.0,220.75,220.62,8.64961058]
[1734241041728,1.5795,220.74,220.61,0.25098]
[1734241041929,1.5795,220.74,220.63,20.0]
[1734241042349,1.5795,220.74,220.6,8.64961058]
[1734241042530,6.5165,220.73,220.61,0.12549]
[1734241042733,6.5165,220.73,220.56,0.67975302]
[1734241043045,6.5165,220.73,220.63,0.12549]
[1734241044644,6.5165,220.73,220.62,0.25098]
[1734241045738,6.5165,220.73,220.62,0.12549]
[1734241046046,6.5165,220.73,220.62,0.25098]
[1734241046847,6.5165,220.73,220.64,8.90059058]
[1734241047631,6.5165,220.73,220.66,0.12549]
[1734241047833,6.5165,220.73,220.65,0.12549]
[1734241048532,6.5165,220.73,220.61,8.64961058]
[1734241049062,6.5165,220.73,220.62,0.12549]
[1734241050855,6.5165,220.73,220.63,8.64961058]
[1734241051036,6.5165,220.73,220.64,8.77510058]
[1734241051349,6.5165,220.73,220.66,0.12549]
[1734241051936,6.5165,220.73,220.61,8.64961058]
[1734241052257,6.5165,220.73,220.62,0.67970789]
[1734241053035,6.5165,220.73,220.63,0.12549]
[1734241053461,6.5165,220.73,220.65,0.12549]
[1734241053638,6.5165,220.73,220.65,0.25098]
[1734241055238,6.5165,220.73,220.67,0.12549]
[1734241058136,6.5165,220.73,220.66,20.67959245]
[1734241058335,6.5165,220.73,220.66,20.0]
[1734241064550,6.5165,220.73,220.59,9.32920038]
[1734241064753,6.5165,220.73,220.6,0.12549]
[1734241065770,6.5165,220.73,220.6,0.25098]
[1734241066877,20.0,220.7,220.6,0.25098]
[1734241067075,1.6628,220.69,220.6,0.25098]
[1734241067248,1.6628,220.69,220.59,0.25098]